[Event "Titled Tuesday Blitz June 14 Late 2022"]
[White "Zhigalko, Sergei"]
[Black "Luo, Terry"]
[WhiteFideId "13502956"]
[BlackFideId "30931045"]
[WhiteElo "2662"]
[BlackElo "2024"]
[Result "1-0"]
[Round "06"]
[TimeControl "180+1"]
[Date "2022.06.14"]
[WhiteClock "0:01:23"]
[BlackClock "0:01:53"]

1. e4 {[%clk 0:03:00]}  c5 {[%clk 0:03:00]} 2. Nf3 {[%clk 0:03:00]}  d6 {[%clk 0:03:00]} 3. d4 {[%clk 0:03:01]}  cxd4 {[%clk 0:03:01]} 4. Qxd4 {[%clk 0:03:01]}  a6 {[%clk 0:03:00]} 5. Bc4 {[%clk 0:03:01]}  Nc6 {[%clk 0:03:00]} 6. Qd3 {[%clk 0:03:01]}  Nf6 {[%clk 0:03:00]} 7. Nc3 {[%clk 0:03:01]}  Bg4 {[%clk 0:02:59]} 8. Bb3 {[%clk 0:03:02]}  e6 {[%clk 0:02:58]} 9. Bf4 {[%clk 0:02:53]}  Be7 {[%clk 0:02:58]} 10. O-O-O {[%clk 0:02:53]}  O-O {[%clk 0:02:52]} 11. Bxd6 {[%clk 0:02:51]}  Bxd6 {[%clk 0:02:50]} 12. Qxd6 {[%clk 0:02:52]}  Qxd6 {[%clk 0:02:47]} 13. Rxd6 {[%clk 0:02:51]}  Bxf3 {[%clk 0:02:43]} 14. gxf3 {[%clk 0:02:50]}  Nh5 {[%clk 0:02:41]} 15. Ne2 {[%clk 0:02:38]}  Rfd8 {[%clk 0:02:39]} 16. Rhd1 {[%clk 0:02:13]}  Rxd6 {[%clk 0:02:39]} 17. Rxd6 {[%clk 0:02:13]}  Rd8 {[%clk 0:02:39]} 18. Rxd8+ {[%clk 0:02:11]}  Nxd8 {[%clk 0:02:40]} 19. f4 {[%clk 0:02:08]}  Kf8 {[%clk 0:02:38]} 20. Kd2 {[%clk 0:02:08]}  Ke7 {[%clk 0:02:37]} 21. Ke3 {[%clk 0:02:08]}  Nc6 {[%clk 0:02:30]} 22. c3 {[%clk 0:01:59]}  Nf6 {[%clk 0:02:11]} 23. h3 {[%clk 0:01:53]}  Nd7 {[%clk 0:02:10]} 24. Bc2 {[%clk 0:01:45]}  a5 {[%clk 0:02:09]} 25. Ba4 {[%clk 0:01:44]}  Nc5 {[%clk 0:02:07]} 26. Bxc6 {[%clk 0:01:43]}  bxc6 {[%clk 0:02:08]} 27. Nd4 {[%clk 0:01:42]}  Kd6 {[%clk 0:02:07]} 28. b3 {[%clk 0:01:29]}  f6 {[%clk 0:02:03]} 29. e5+ {[%clk 0:01:25]}  fxe5 {[%clk 0:01:59]} 30. fxe5+ {[%clk 0:01:26]}  Kc7 {[%clk 0:01:53]} 31. b4 {[%clk 0:01:23]} 1-0


[Site "https://www.chess.com"]

[Event "Titled Tuesday Blitz June 14 Late 2022"]
[White "Zhurbinsky, David"]
[Black "Harsh Suresh"]
[WhiteFideId "2072904"]
[BlackFideId "45018464"]
[WhiteElo "2558"]
[BlackElo "2059"]
[Result "1-0"]
[Round "06"]
[TimeControl "180+1"]
[Date "2022.06.14"]
[WhiteClock "0:00:06"]
[BlackClock "0:00:08"]

1. e4 {[%clk 0:03:00]}  c5 {[%clk 0:02:59]} 2. Nf3 {[%clk 0:03:01]}  d6 {[%clk 0:02:59]} 3. d4 {[%clk 0:03:01]}  cxd4 {[%clk 0:02:59]} 4. Nxd4 {[%clk 0:03:02]}  Nf6 {[%clk 0:03:00]} 5. f3 {[%clk 0:03:02]}  e5 {[%clk 0:02:55]} 6. Nb3 {[%clk 0:03:01]}  Be6 {[%clk 0:02:54]} 7. c4 {[%clk 0:03:01]}  Be7 {[%clk 0:02:54]} 8. Nc3 {[%clk 0:03:02]}  O-O {[%clk 0:02:54]} 9. Be3 {[%clk 0:03:02]}  Nc6 {[%clk 0:02:52]} 10. Be2 {[%clk 0:03:02]}  a5 {[%clk 0:02:52]} 11. O-O {[%clk 0:02:55]}  a4 {[%clk 0:02:51]} 12. Nd2 {[%clk 0:02:53]}  Qa5 {[%clk 0:02:49]} 13. Rc1 {[%clk 0:02:48]}  Rfc8 {[%clk 0:02:48]} 14. Nb5 {[%clk 0:02:31]}  Ne8 {[%clk 0:02:15]} 15. f4 {[%clk 0:02:19]}  exf4 {[%clk 0:02:13]} 16. Bxf4 {[%clk 0:02:14]}  Ne5 {[%clk 0:02:09]} 17. Be3 {[%clk 0:02:00]}  Nf6 {[%clk 0:01:55]} 18. h3 {[%clk 0:01:52]}  Nfd7 {[%clk 0:01:39]} 19. Qe1 {[%clk 0:01:44]}  Nc5 {[%clk 0:01:34]} 20. Qg3 {[%clk 0:01:29]}  Kh8 {[%clk 0:00:58]} 21. Rc3 {[%clk 0:00:56]}  Nxc4 {[%clk 0:00:42]} 22. Bxc4 {[%clk 0:00:42]}  Bxc4 {[%clk 0:00:42]} 23. Rxc4 {[%clk 0:00:37]}  Qxb5 {[%clk 0:00:41]} 24. Rxf7 {[%clk 0:00:36]}  Bf6 {[%clk 0:00:31]} 25. Qxd6 {[%clk 0:00:15]}  b6 {[%clk 0:00:20]} 26. Rxf6 {[%clk 0:00:14]}  Rd8 {[%clk 0:00:12]} 27. Qxb6 {[%clk 0:00:11]}  Qxb6 {[%clk 0:00:09]} 28. Rxb6 {[%clk 0:00:12]}  Nd7 {[%clk 0:00:10]} 29. Rb7 {[%clk 0:00:10]}  Ne5 {[%clk 0:00:10]} 30. Rcc7 {[%clk 0:00:10]}  a3 {[%clk 0:00:10]} 31. Rxg7 {[%clk 0:00:07]}  axb2 {[%clk 0:00:10]} 32. Rxh7+ {[%clk 0:00:07]}  Kg8 {[%clk 0:00:10]} 33. Rbg7+ {[%clk 0:00:08]}  Kf8 {[%clk 0:00:10]} 34. Bc5+ {[%clk 0:00:09]}  Ke8 {[%clk 0:00:11]} 35. Re7+ {[%clk 0:00:06]}  Kf8 {[%clk 0:00:11]} 36. Ref7+ {[%clk 0:00:06]}  Kg8 {[%clk 0:00:08]} 37. Rfg7# {[%clk 0:00:06]} 1-0


[Site "https://www.chess.com"]

[Event "Titled Tuesday Blitz June 14 Late 2022"]
[White "Zierk, Steven"]
[Black "Babazada, Khazar"]
[WhiteFideId "2034255"]
[BlackFideId "13413554"]
[WhiteElo "2494"]
[BlackElo "2406"]
[Result "0-1"]
[Round "06"]
[TimeControl "180+1"]
[Date "2022.06.14"]
[WhiteClock "0:00:04"]
[BlackClock "0:00:10"]

1. b3 {[%clk 0:03:00]}  d5 {[%clk 0:02:58]} 2. Bb2 {[%clk 0:03:01]}  Bg4 {[%clk 0:02:58]} 3. Nf3 {[%clk 0:03:00]}  Bxf3 {[%clk 0:02:58]} 4. exf3 {[%clk 0:03:01]}  e6 {[%clk 0:02:55]} 5. f4 {[%clk 0:03:00]}  Nf6 {[%clk 0:02:55]} 6. g3 {[%clk 0:03:00]}  Be7 {[%clk 0:02:55]} 7. Bg2 {[%clk 0:03:00]}  g6 {[%clk 0:02:55]} 8. h4 {[%clk 0:02:52]}  h5 {[%clk 0:02:54]} 9. d3 {[%clk 0:02:52]}  c6 {[%clk 0:02:54]} 10. Nd2 {[%clk 0:02:52]}  Nbd7 {[%clk 0:02:53]} 11. Nf3 {[%clk 0:02:53]}  O-O {[%clk 0:02:52]} 12. Ng5 {[%clk 0:02:50]}  Ba3 {[%clk 0:02:43]} 13. Bc3 {[%clk 0:02:42]}  a5 {[%clk 0:02:33]} 14. O-O {[%clk 0:02:41]}  b5 {[%clk 0:02:26]} 15. Rb1 {[%clk 0:02:27]}  Qe7 {[%clk 0:02:22]} 16. Re1 {[%clk 0:02:18]}  Bb4 {[%clk 0:02:21]} 17. Qd2 {[%clk 0:02:17]}  Qc5 {[%clk 0:02:19]} 18. Bxb4 {[%clk 0:02:14]}  axb4 {[%clk 0:02:19]} 19. Ra1 {[%clk 0:02:09]}  Qc3 {[%clk 0:02:19]} 20. Qe2 {[%clk 0:02:06]}  Rfe8 {[%clk 0:02:16]} 21. Bh3 {[%clk 0:02:03]}  Nc5 {[%clk 0:02:07]} 22. Nf3 {[%clk 0:02:01]}  Ncd7 {[%clk 0:01:57]} 23. Kg2 {[%clk 0:01:52]}  Ra7 {[%clk 0:01:56]} 24. Qe3 {[%clk 0:01:47]}  Qc5 {[%clk 0:01:53]} 25. Nd4 {[%clk 0:01:43]}  Rea8 {[%clk 0:01:21]} 26. Re2 {[%clk 0:01:34]}  Rxa2 {[%clk 0:01:09]} 27. Rae1 {[%clk 0:01:33]}  Re8 {[%clk 0:01:05]} 28. Kh1 {[%clk 0:01:22]}  Qd6 {[%clk 0:01:01]} 29. Nf3 {[%clk 0:01:18]}  Ng4 {[%clk 0:00:59]} 30. Qd2 {[%clk 0:01:09]}  Rc8 {[%clk 0:00:33]} 31. Ng5 {[%clk 0:01:02]}  Re8 {[%clk 0:00:29]} 32. d4 {[%clk 0:00:49]}  Raa8 {[%clk 0:00:27]} 33. Nf3 {[%clk 0:00:46]}  Ngf6 {[%clk 0:00:26]} 34. Ne5 {[%clk 0:00:43]}  Ne4 {[%clk 0:00:23]} 35. Qe3 {[%clk 0:00:39]}  Nc3 {[%clk 0:00:24]} 36. Rd2 {[%clk 0:00:36]}  Nxe5 {[%clk 0:00:25]} 37. fxe5 {[%clk 0:00:35]}  Qe7 {[%clk 0:00:25]} 38. Qf4 {[%clk 0:00:27]}  c5 {[%clk 0:00:25]} 39. dxc5 {[%clk 0:00:26]}  Qxc5 {[%clk 0:00:26]} 40. g4 {[%clk 0:00:24]}  hxg4 {[%clk 0:00:24]} 41. Bxg4 {[%clk 0:00:25]}  Qe7 {[%clk 0:00:22]} 42. Bf3 {[%clk 0:00:21]}  Kg7 {[%clk 0:00:23]} 43. Rd4 {[%clk 0:00:17]}  Rh8 {[%clk 0:00:22]} 44. Rg1 {[%clk 0:00:16]}  Ne4 {[%clk 0:00:22]} 45. h5 {[%clk 0:00:13]}  Rag8 {[%clk 0:00:16]} 46. Kg2 {[%clk 0:00:12]}  Qg5+ {[%clk 0:00:16]} 47. Qxg5 {[%clk 0:00:12]}  Nxg5 {[%clk 0:00:17]} 48. Rxb4 {[%clk 0:00:12]}  Nxf3 {[%clk 0:00:16]} 49. Kxf3 {[%clk 0:00:12]}  Rxh5 {[%clk 0:00:17]} 50. Rxb5 {[%clk 0:00:12]}  Rxe5 {[%clk 0:00:18]} 51. c4 {[%clk 0:00:13]}  Rf5+ {[%clk 0:00:18]} 52. Ke3 {[%clk 0:00:13]}  Rd8 {[%clk 0:00:17]} 53. c5 {[%clk 0:00:13]}  d4+ {[%clk 0:00:18]} 54. Kd3 {[%clk 0:00:13]}  Rxf2 {[%clk 0:00:18]} 55. Rc1 {[%clk 0:00:12]}  Rf3+ {[%clk 0:00:18]} 56. Ke2 {[%clk 0:00:13]}  Rh3 {[%clk 0:00:18]} 57. c6 {[%clk 0:00:11]}  d3+ {[%clk 0:00:18]} 58. Kf2 {[%clk 0:00:11]}  Rh2+ {[%clk 0:00:17]} 59. Kf3 {[%clk 0:00:11]}  d2 {[%clk 0:00:17]} 60. Rd1 {[%clk 0:00:12]}  f5 {[%clk 0:00:11]} 61. Rc5 {[%clk 0:00:11]}  Kf6 {[%clk 0:00:11]} 62. Kg3 {[%clk 0:00:10]}  Re2 {[%clk 0:00:10]} 63. Kf3 {[%clk 0:00:10]}  Re1 {[%clk 0:00:10]} 64. c7 {[%clk 0:00:09]}  Rd3+ {[%clk 0:00:08]} 65. Kf2 {[%clk 0:00:10]}  Rxd1 {[%clk 0:00:08]} 66. c8=Q {[%clk 0:00:10]}  Rf1+ {[%clk 0:00:09]} 67. Kg2 {[%clk 0:00:10]}  Rg1+ {[%clk 0:00:08]} 68. Kf2 {[%clk 0:00:09]}  Rf3+ {[%clk 0:00:08]} 69. Kxg1 {[%clk 0:00:03]}  d1=Q+ {[%clk 0:00:09]} 70. Kh2 {[%clk 0:00:04]}  Qe2+ {[%clk 0:00:09]} 71. Kg1 {[%clk 0:00:04]}  Rf1# {[%clk 0:00:10]} 0-1


[Site "https://www.chess.com"]

[Event "Titled Tuesday Blitz June 14 Late 2022"]
[White "Acosta, Pablo Ismael"]
[Black "Martinez Reyes, Pedro Ramon"]
[WhiteFideId "124311"]
[BlackFideId "3901807"]
[WhiteElo "2313"]
[BlackElo "2410"]
[Result "1-0"]
[Round "07"]
[TimeControl "180+1"]
[Date "2022.06.14"]
[WhiteClock "0:00:08"]
[BlackClock "0:00:01"]

1. d4 {[%clk 0:03:00]}  Nf6 {[%clk 0:02:59]} 2. c4 {[%clk 0:03:00]}  c5 {[%clk 0:03:00]} 3. d5 {[%clk 0:03:00]}  b5 {[%clk 0:03:00]} 4. f3 {[%clk 0:02:49]}  bxc4 {[%clk 0:02:57]} 5. e4 {[%clk 0:02:50]}  d6 {[%clk 0:02:58]} 6. Bxc4 {[%clk 0:02:49]}  g6 {[%clk 0:02:58]} 7. Ne2 {[%clk 0:02:49]}  Bg7 {[%clk 0:02:59]} 8. O-O {[%clk 0:02:49]}  O-O {[%clk 0:02:59]} 9. Bd2 {[%clk 0:02:47]}  Qb6 {[%clk 0:02:54]} 10. Bc3 {[%clk 0:02:46]}  Ba6 {[%clk 0:02:53]} 11. Nd2 {[%clk 0:02:45]}  Nbd7 {[%clk 0:02:50]} 12. Qc2 {[%clk 0:02:40]}  Qb7 {[%clk 0:02:50]} 13. Rab1 {[%clk 0:02:26]}  Nb6 {[%clk 0:02:50]} 14. b3 {[%clk 0:02:26]}  Nxc4 {[%clk 0:02:36]} 15. bxc4 {[%clk 0:02:24]}  Qd7 {[%clk 0:02:34]} 16. Rb2 {[%clk 0:02:16]}  e6 {[%clk 0:02:27]} 17. dxe6 {[%clk 0:01:58]}  fxe6 {[%clk 0:02:22]} 18. Rd1 {[%clk 0:01:49]}  d5 {[%clk 0:02:15]} 19. e5 {[%clk 0:01:22]}  Nh5 {[%clk 0:01:49]} 20. Nb3 {[%clk 0:01:10]}  Qc6 {[%clk 0:01:28]} 21. cxd5 {[%clk 0:00:49]}  exd5 {[%clk 0:01:26]} 22. Rbb1 {[%clk 0:00:49]}  Rac8 {[%clk 0:01:17]} 23. Rbc1 {[%clk 0:00:36]}  Qe6 {[%clk 0:01:07]} 24. Ng3 {[%clk 0:00:31]}  Nf4 {[%clk 0:01:03]} 25. Ba1 {[%clk 0:00:20]}  Bc4 {[%clk 0:00:52]} 26. Rd2 {[%clk 0:00:18]}  h5 {[%clk 0:00:48]} 27. Re1 {[%clk 0:00:18]}  h4 {[%clk 0:00:48]} 28. Nf1 {[%clk 0:00:19]}  h3 {[%clk 0:00:47]} 29. g3 {[%clk 0:00:19]}  Ng2 {[%clk 0:00:47]} 30. Rxg2 {[%clk 0:00:12]}  hxg2 {[%clk 0:00:48]} 31. Qxg2 {[%clk 0:00:12]}  d4 {[%clk 0:00:47]} 32. f4 {[%clk 0:00:13]}  Bd5 {[%clk 0:00:47]} 33. Qf2 {[%clk 0:00:12]}  Ba8 {[%clk 0:00:41]} 34. Nfd2 {[%clk 0:00:12]}  g5 {[%clk 0:00:36]} 35. Ne4 {[%clk 0:00:09]}  gxf4 {[%clk 0:00:37]} 36. gxf4 {[%clk 0:00:09]}  Qg4+ {[%clk 0:00:37]} 37. Qg3 {[%clk 0:00:10]}  Rxf4 {[%clk 0:00:36]} 38. Nexc5 {[%clk 0:00:09]}  Qf5 {[%clk 0:00:29]} 39. Nxd4 {[%clk 0:00:09]}  Rxd4 {[%clk 0:00:08]} 40. Bxd4 {[%clk 0:00:08]}  Rc6 {[%clk 0:00:08]} 41. e6 {[%clk 0:00:08]}  Qf8 {[%clk 0:00:05]} 42. e7 {[%clk 0:00:08]}  Qxe7 {[%clk 0:00:01]} 43. Rxe7 {[%clk 0:00:08]}  Rg6 {[%clk 0:00:01]} 44. Qxg6 {[%clk 0:00:08]} 1-0


[Site "https://www.chess.com"]

[Event "Titled Tuesday Blitz June 14 Late 2022"]
[White "Baches Garcia, Guillermo"]
[Black "Oro, Luis"]
[WhiteFideId "2209764"]
[BlackFideId "104094"]
[WhiteElo "2491"]
[BlackElo "2362"]
[Result "0-1"]
[Round "07"]
[TimeControl "180+1"]
[Date "2022.06.15"]
[WhiteClock "0:00:05"]
[BlackClock "0:00:04"]

1. e4 {[%clk 0:03:00]}  c5 {[%clk 0:02:58]} 2. Nf3 {[%clk 0:03:00]}  d6 {[%clk 0:02:58]} 3. d4 {[%clk 0:03:00]}  cxd4 {[%clk 0:02:59]} 4. Nxd4 {[%clk 0:03:00]}  Nf6 {[%clk 0:02:59]} 5. Nc3 {[%clk 0:03:01]}  a6 {[%clk 0:03:00]} 6. Be3 {[%clk 0:03:01]}  e5 {[%clk 0:02:58]} 7. Nb3 {[%clk 0:03:01]}  Be6 {[%clk 0:02:55]} 8. f3 {[%clk 0:03:01]}  Be7 {[%clk 0:02:56]} 9. Qd2 {[%clk 0:03:01]}  O-O {[%clk 0:02:56]} 10. O-O-O {[%clk 0:03:01]}  b5 {[%clk 0:02:56]} 11. g4 {[%clk 0:02:59]}  Nbd7 {[%clk 0:02:57]} 12. g5 {[%clk 0:02:56]}  b4 {[%clk 0:02:57]} 13. Ne2 {[%clk 0:02:50]}  Ne8 {[%clk 0:02:52]} 14. f4 {[%clk 0:02:48]}  a5 {[%clk 0:02:51]} 15. f5 {[%clk 0:02:45]}  a4 {[%clk 0:02:50]} 16. Nbd4 {[%clk 0:02:14]}  b3 {[%clk 0:02:42]} 17. cxb3 {[%clk 0:02:05]}  axb3 {[%clk 0:02:34]} 18. a3 {[%clk 0:02:05]}  exd4 {[%clk 0:02:31]} 19. Nxd4 {[%clk 0:02:05]}  Rc8+ {[%clk 0:02:31]} 20. Kb1 {[%clk 0:02:00]}  Bc4 {[%clk 0:02:30]} 21. Rc1 {[%clk 0:01:39]}  Ne5 {[%clk 0:02:23]} 22. h4 {[%clk 0:01:30]}  Bxf1 {[%clk 0:02:20]} 23. Rhxf1 {[%clk 0:01:30]}  Rxc1+ {[%clk 0:01:49]} 24. Rxc1 {[%clk 0:01:31]}  Qd7 {[%clk 0:01:42]} 25. Nxb3 {[%clk 0:01:19]}  Nc7 {[%clk 0:01:37]} 26. Nd4 {[%clk 0:01:08]}  Rb8 {[%clk 0:01:18]} 27. f6 {[%clk 0:01:05]}  Bf8 {[%clk 0:01:14]} 28. fxg7 {[%clk 0:01:02]}  Bxg7 {[%clk 0:01:13]} 29. Nf5 {[%clk 0:01:01]}  Nf3 {[%clk 0:01:04]} 30. Qc2 {[%clk 0:00:33]}  Rxb2+ {[%clk 0:01:02]} 31. Qxb2 {[%clk 0:00:34]}  Bxb2 {[%clk 0:01:03]} 32. Kxb2 {[%clk 0:00:35]}  Qb5+ {[%clk 0:01:02]} 33. Ka1 {[%clk 0:00:34]}  Qa5 {[%clk 0:00:52]} 34. Ka2 {[%clk 0:00:26]}  Kf8 {[%clk 0:00:29]} 35. Rc6 {[%clk 0:00:22]}  Ne5 {[%clk 0:00:19]} 36. Rxd6 {[%clk 0:00:19]}  Nc4 {[%clk 0:00:15]} 37. Rd8+ {[%clk 0:00:19]}  Ne8 {[%clk 0:00:15]} 38. Rd3 {[%clk 0:00:15]}  Qe1 {[%clk 0:00:13]} 39. Bc5+ {[%clk 0:00:13]}  Kg8 {[%clk 0:00:13]} 40. Kb3 {[%clk 0:00:12]}  Na5+ {[%clk 0:00:10]} 41. Ka4 {[%clk 0:00:11]}  Nc6 {[%clk 0:00:09]} 42. Bb4 {[%clk 0:00:09]}  Nxb4 {[%clk 0:00:08]} 43. axb4 {[%clk 0:00:08]}  Qxe4 {[%clk 0:00:09]} 44. Rd8 {[%clk 0:00:06]}  Qxf5 {[%clk 0:00:07]} 45. Rxe8+ {[%clk 0:00:06]}  Kg7 {[%clk 0:00:08]} 46. Re3 {[%clk 0:00:05]}  Qf4 {[%clk 0:00:07]} 47. Rb3 {[%clk 0:00:05]}  Qxh4 {[%clk 0:00:07]} 48. Ka5 {[%clk 0:00:06]}  Qxg5+ {[%clk 0:00:07]} 49. b5 {[%clk 0:00:06]}  Qd2+ {[%clk 0:00:07]} 50. Rb4 {[%clk 0:00:05]}  Qd8+ {[%clk 0:00:05]} 51. b6 {[%clk 0:00:06]}  Qb8 {[%clk 0:00:06]} 52. Ka6 {[%clk 0:00:06]}  f5 {[%clk 0:00:06]} 53. b7 {[%clk 0:00:06]}  f4 {[%clk 0:00:05]} 54. Rc4 {[%clk 0:00:06]}  Qd6+ {[%clk 0:00:03]} 55. Ka7 {[%clk 0:00:06]}  Qa3+ {[%clk 0:00:04]} 56. Kb6 {[%clk 0:00:06]}  Qb3+ {[%clk 0:00:04]} 57. Kc5 {[%clk 0:00:05]}  Qxb7 {[%clk 0:00:04]} 58. Rxf4 {[%clk 0:00:05]}  Qc7+ {[%clk 0:00:04]} 0-1


[Site "https://www.chess.com"]

[Event "Titled Tuesday Blitz June 14 Late 2022"]
[White "Bayo Milagro, Alvaro"]
[Black "Kovanova, Baira"]
[WhiteFideId "22275240"]
[BlackFideId "4164083"]
[WhiteElo "2270"]
[BlackElo "2190"]
[Result "1/2-1/2"]
[Round "07"]
[TimeControl "180+1"]
[Date "2022.06.15"]
[WhiteClock "0:00:12"]
[BlackClock "0:00:11"]

1. d4 {[%clk 0:02:59]}  Nf6 {[%clk 0:02:59]} 2. c4 {[%clk 0:03:00]}  e6 {[%clk 0:02:59]} 3. Nf3 {[%clk 0:03:00]}  d5 {[%clk 0:02:55]} 4. g3 {[%clk 0:03:00]}  Bb4+ {[%clk 0:02:54]} 5. Nbd2 {[%clk 0:02:59]}  O-O {[%clk 0:02:53]} 6. Bg2 {[%clk 0:02:59]}  b6 {[%clk 0:02:52]} 7. O-O {[%clk 0:02:56]}  Bb7 {[%clk 0:02:52]} 8. cxd5 {[%clk 0:02:43]}  exd5 {[%clk 0:02:51]} 9. Ne5 {[%clk 0:02:43]}  Nbd7 {[%clk 0:02:47]} 10. Ndf3 {[%clk 0:02:35]}  Bd6 {[%clk 0:02:47]} 11. Nd3 {[%clk 0:02:30]}  Re8 {[%clk 0:02:46]} 12. Bg5 {[%clk 0:02:27]}  h6 {[%clk 0:02:46]} 13. Bxf6 {[%clk 0:02:28]}  Qxf6 {[%clk 0:02:46]} 14. Rc1 {[%clk 0:02:28]}  Qe7 {[%clk 0:02:38]} 15. e3 {[%clk 0:02:26]}  c5 {[%clk 0:02:36]} 16. dxc5 {[%clk 0:02:21]}  bxc5 {[%clk 0:02:36]} 17. Nh4 {[%clk 0:02:20]}  Qe6 {[%clk 0:02:24]} 18. Nf4 {[%clk 0:02:16]}  Bxf4 {[%clk 0:02:24]} 19. gxf4 {[%clk 0:02:17]}  Rab8 {[%clk 0:02:14]} 20. Nf3 {[%clk 0:01:55]}  Qf6 {[%clk 0:02:05]} 21. b3 {[%clk 0:01:55]}  d4 {[%clk 0:02:04]} 22. exd4 {[%clk 0:01:49]}  cxd4 {[%clk 0:01:30]} 23. Qxd4 {[%clk 0:01:45]}  Qg6 {[%clk 0:01:28]} 24. Nh4 {[%clk 0:01:37]}  Qg4 {[%clk 0:01:28]} 25. Rc7 {[%clk 0:01:18]}  Ne5 {[%clk 0:00:56]} 26. Rxb7 {[%clk 0:01:03]}  Rxb7 {[%clk 0:00:55]} 27. Qa4 {[%clk 0:01:03]}  Nd7 {[%clk 0:00:46]} 28. h3 {[%clk 0:01:02]}  Qxh4 {[%clk 0:00:40]} 29. Bxb7 {[%clk 0:01:03]}  Qxh3 {[%clk 0:00:38]} 30. Bg2 {[%clk 0:00:58]}  Qg4 {[%clk 0:00:36]} 31. Qxa7 {[%clk 0:00:50]}  Nf6 {[%clk 0:00:35]} 32. Qa4 {[%clk 0:00:37]}  Qh4 {[%clk 0:00:34]} 33. Qc6 {[%clk 0:00:33]}  Re2 {[%clk 0:00:26]} 34. Qf3 {[%clk 0:00:24]}  Rxa2 {[%clk 0:00:26]} 35. Qg3 {[%clk 0:00:22]}  Qxg3 {[%clk 0:00:14]} 36. fxg3 {[%clk 0:00:23]}  Rb2 {[%clk 0:00:15]} 37. Rf3 {[%clk 0:00:19]}  Ng4 {[%clk 0:00:15]} 38. Bh3 {[%clk 0:00:15]}  h5 {[%clk 0:00:13]} 39. Bxg4 {[%clk 0:00:15]}  hxg4 {[%clk 0:00:14]} 40. Rc3 {[%clk 0:00:15]}  f5 {[%clk 0:00:13]} 41. Kf1 {[%clk 0:00:14]}  Kf7 {[%clk 0:00:12]} 42. Kg1 {[%clk 0:00:14]}  g6 {[%clk 0:00:12]} 43. Kf1 {[%clk 0:00:13]}  Kf6 {[%clk 0:00:12]} 44. Rc6+ {[%clk 0:00:13]}  Kf7 {[%clk 0:00:12]} 45. Rb6 {[%clk 0:00:13]}  Kg7 {[%clk 0:00:11]} 46. Kg1 {[%clk 0:00:13]}  Kf7 {[%clk 0:00:10]} 47. Kf1 {[%clk 0:00:14]}  Kg7 {[%clk 0:00:10]} 48. Kg1 {[%clk 0:00:14]}  Kf7 {[%clk 0:00:11]} 49. Kf1 {[%clk 0:00:12]} 1/2-1/2


[Site "https://www.chess.com"]

[Event "Titled Tuesday Blitz June 14 Late 2022"]
[White "Bilych, Olexiy"]
[Black "Reprintsev, Alexander"]
[WhiteFideId "14156504"]
[BlackFideId "14100541"]
[WhiteElo "2189"]
[BlackElo "2108"]
[Result "1-0"]
[Round "07"]
[TimeControl "180+1"]
[Date "2022.06.14"]
[WhiteClock "0:00:53"]
[BlackClock "0:02:00"]

1. e4 {[%clk 0:03:00]}  d5 {[%clk 0:02:58]} 2. exd5 {[%clk 0:03:00]}  Qxd5 {[%clk 0:02:58]} 3. Nc3 {[%clk 0:03:01]}  Qa5 {[%clk 0:02:57]} 4. d4 {[%clk 0:03:01]}  Nf6 {[%clk 0:02:57]} 5. Nf3 {[%clk 0:03:00]}  Nc6 {[%clk 0:02:56]} 6. d5 {[%clk 0:02:18]}  Nb4 {[%clk 0:02:55]} 7. Bb5+ {[%clk 0:02:18]}  Bd7 {[%clk 0:02:53]} 8. Bxd7+ {[%clk 0:02:18]}  Nxd7 {[%clk 0:02:52]} 9. O-O {[%clk 0:02:16]}  Nf6 {[%clk 0:02:52]} 10. Bd2 {[%clk 0:01:38]}  Rd8 {[%clk 0:02:47]} 11. Ne2 {[%clk 0:01:30]}  Qb6 {[%clk 0:02:37]} 12. c4 {[%clk 0:01:21]}  e6 {[%clk 0:02:33]} 13. Qa4+ {[%clk 0:01:21]}  c6 {[%clk 0:02:30]} 14. dxe6 {[%clk 0:01:19]}  fxe6 {[%clk 0:02:28]} 15. Be3 {[%clk 0:01:01]}  Bc5 {[%clk 0:02:23]} 16. Bxc5 {[%clk 0:01:01]}  Qxc5 {[%clk 0:02:23]} 17. Ned4 {[%clk 0:01:02]}  Rd6 {[%clk 0:02:01]} 18. Rfe1 {[%clk 0:00:56]}  Kd7 {[%clk 0:02:00]} 19. Nb3 {[%clk 0:00:53]} 1-0


[Site "https://www.chess.com"]